bitfinex/quotes_BTCUSD_20251001
["timestamp","ask_amount","ask_price","bid_price","bid_amount"]
[1759321818851,0.26596507,116700.0,116690.0,9.72383429]
[1759321819091,0.26596507,116700.0,116690.0,1.22383429]
[1759321819770,0.26596507,116700.0,116690.0,0.17139429]
[1759321819993,0.26596507,116700.0,116690.0,0.77823429]
[1759321820201,0.26596507,116700.0,116690.0,1.22383429]
[1759321820408,0.26596507,116700.0,116690.0,0.17139429]
[1759321820634,0.26596507,116700.0,116690.0,0.60684]
[1759321820854,0.26596507,116700.0,116690.0,0.86735429]
[1759321821512,0.26596507,116700.0,116680.0,0.17140898]
[1759321821742,0.26596507,116700.0,116670.0,0.19093758]
[1759321821743,0.17140898,116680.0,116670.0,0.19093758]
[1759321821967,0.17671898,116680.0,116670.0,8.19093758]
[1759321822197,0.12671898,116680.0,116670.0,8.19093758]
[1759321822457,0.21610445,116680.0,116670.0,8.37599451]
[1759321822688,0.21610445,116680.0,116670.0,8.01951451]
[1759321822910,0.21610445,116680.0,116670.0,8.62635451]
[1759321823131,0.21610445,116680.0,116670.0,9.24337818]
[1759321823586,0.21610445,116680.0,116670.0,0.62635451]
[1759321823834,0.21610445,116680.0,116670.0,0.73247451]
[1759321824036,0.21610445,116680.0,116670.0,1.07195451]
[1759321824272,0.21610445,116680.0,116670.0,0.71547451]
[1759321825198,0.21610445,116680.0,116670.0,0.01951451]
[1759321825413,0.21610445,116680.0,116670.0,0.71547451]
[1759321829331,0.24625635,116680.0,116670.0,0.71547451]
[1759321829547,0.24625635,116680.0,116670.0,0.25045948]
[1759321829765,0.24625635,116680.0,116670.0,0.69609948]
[1759321832349,0.24625635,116680.0,116670.0,0.00013948]
[1759321832574,0.24625635,116680.0,116670.0,0.69613948]
[1759321834339,0.24625635,116680.0,116670.0,0.00013948]
[1759321834533,0.24625635,116680.0,116670.0,0.46189948]
[1759321834738,0.24625635,116680.0,116670.0,0.55101948]
[1759321835554,0.24625635,116680.0,116670.0,0.00013948]
[1759321835715,0.24625635,116680.0,116670.0,0.69617948]
[1759321835926,0.24625635,116680.0,116670.0,0.00013948]
[1759321836140,0.24625635,116680.0,116670.0,0.52009948]
[1759321840084,0.24625635,116680.0,116670.0,0.25045948]
[1759321840270,0.24625635,116680.0,116670.0,0.69613948]
[1759321840894,0.56285918,116680.0,116670.0,0.08925948]
[1759321841092,0.55775054,116680.0,116670.0,0.33957948]
[1759321845780,0.89775054,116680.0,116670.0,0.33957948]
[1759321845983,0.99775054,116680.0,116670.0,0.33957948]
[1759321846195,1.02349232,116680.0,116670.0,0.33957948]
[1759321846612,0.76099232,116680.0,116670.0,0.33957948]
[1759321848507,0.66099232,116680.0,116670.0,0.33957948]
[1759321848716,0.76099232,116680.0,116670.0,0.33957948]
[1759321849335,0.77943205,116680.0,116670.0,0.33957948]
[1759321850548,0.78793205,116680.0,116670.0,0.33957948]
[1759321851122,0.66293205,116680.0,116670.0,0.33957948]
[1759321851345,0.76293205,116680.0,116670.0,0.33957948]
[1759321852289,0.7629634,116680.0,116670.0,0.33957948]
[1759321852472,0.7629634,116680.0,116670.0,0.34014948]
[1759321852473,0.26175972,116680.0,116670.0,0.34014948]
[1759321852739,0.27347189,116680.0,116670.0,0.34014948]
[1759321852960,0.24331999,116680.0,116670.0,0.34050948]
[1759321853372,0.24331999,116680.0,116670.0,0.34014948]
[1759321853757,0.24532999,116680.0,116670.0,0.33957948]
[1759321853991,0.24846999,116680.0,116670.0,0.00070948]
[1759321854225,0.24846999,116680.0,116670.0,0.69629948]
[1759321854670,0.24846999,116680.0,116670.0,0.25049948]
[1759321854874,0.24846999,116680.0,116670.0,0.69629948]
[1759321855406,0.23245296,116680.0,116670.0,0.69629948]
[1759321856568,0.23245296,116680.0,116670.0,0.00013948]
[1759321856801,0.23245296,116680.0,116670.0,0.69629948]
[1759321857016,0.23245296,116680.0,116670.0,0.00013948]
[1759321857249,0.23245296,116680.0,116670.0,0.69621948]
[1759321858140,0.23245296,116680.0,116670.0,0.00013948]
[1759321858352,0.23245296,116680.0,116670.0,0.69617948]
[1759321858773,0.23245296,116680.0,116670.0,0.00013948]
[1759321858995,0.26260486,116680.0,116670.0,0.19049948]
[1759321859214,0.26260486,116680.0,116670.0,0.63621948]
[1759321859799,0.26260486,116680.0,116670.0,0.60705948]
[1759321860009,0.17143836,116660.0,116650.0,0.17145301]
[1759321860216,0.70372383,116660.0,116650.0,0.61788242]
[1759321860409,0.70372383,116660.0,116650.0,0.17216242]
[1759321860696,0.70372383,116660.0,116650.0,0.61788247]
[1759321860903,0.70372383,116660.0,116650.0,0.00070941]
[1759321861434,0.70887383,116660.0,116650.0,0.00013941]
[1759321861639,0.70887383,116660.0,116650.0,0.69617941]
[1759321861907,0.71689317,116660.0,116650.0,0.69617941]
[1759321862223,0.71689375,116660.0,116650.0,0.25045941]
[1759321862426,0.71689375,116660.0,116650.0,0.69617941]
[1759321863776,0.71174375,116660.0,116650.0,0.69674941]
[1759321864177,0.71174375,116660.0,116650.0,0.69710941]
[1759321864637,0.71174375,116660.0,116650.0,0.00106941]
[1759321864839,0.71174375,116660.0,116650.0,0.25102941]
[1759321865013,0.71174375,116660.0,116650.0,0.69710941]
[1759321865378,0.70372383,116660.0,116650.0,0.86856247]
[1759321866139,0.70372383,116660.0,116650.0,0.00070941]
[1759321866356,0.71174569,116660.0,116650.0,1.19674941]
[1759321866563,0.71174569,116660.0,116650.0,0.69674941]
[1759321867895,0.71174569,116660.0,116650.0,0.86820247]
[1759321868076,0.71375569,116660.0,116650.0,0.69674941]
[1759321868285,0.70573383,116660.0,116650.0,0.25045941]
[1759321868494,0.7137563,116660.0,116650.0,0.69617941]
[1759321868720,0.7168963,116660.0,116650.0,0.69617941]
[1759321870100,0.7168963,116660.0,116650.0,0.00013941]
[1759321870315,0.7168963,116660.0,116650.0,0.69617941]
[1759321871583,0.2739963,116660.0,116650.0,0.69617941]
[1759321872012,0.2688463,116660.0,116650.0,0.69674941]
[1759321872411,0.2739963,116660.0,116650.0,0.00013941]
[1759321872619,0.2739963,116660.0,116650.0,0.69617941]
[1759321872749,0.2688463,116660.0,116650.0,0.69674941]
[1759321873171,0.2708563,116660.0,116650.0,0.69674941]
[1759321873466,0.27399697,116660.0,116650.0,0.69617941]
[1759321875210,0.27399697,116660.0,116650.0,0.60705941]
[1759321875412,0.27399697,116660.0,116650.0,0.00013941]
[1759321875413,0.27399727,116660.0,116650.0,0.00013941]
[1759321875666,0.27399727,116660.0,116650.0,0.69625941]
[1759321876302,0.26597383,116660.0,116650.0,0.00013941]
[1759321876723,0.27399791,116660.0,116650.0,0.69625941]
[1759321876970,0.26597383,116660.0,116650.0,0.69625941]
[1759321877214,0.27399786,116660.0,116650.0,0.69625941]
[1759321877649,0.30414976,116660.0,116650.0,0.69625941]
[1759321877877,0.30414976,116660.0,116650.0,0.00013941]
[1759321878089,0.32989249,116660.0,116650.0,0.69625941]
[1759321878499,0.32989249,116660.0,116650.0,0.69621941]
[1759321878928,0.32989249,116660.0,116650.0,0.44593941]
[1759321879156,0.39312741,116660.0,116650.0,0.69621941]
[1759321879816,0.39312741,116660.0,116650.0,0.69678941]
[1759321879817,0.35782551,116660.0,116650.0,0.69678941]
[1759321880043,0.29459059,116660.0,116650.0,0.69678941]
[1759321880312,0.29459059,116660.0,116650.0,0.25041941]
[1759321880313,0.29971059,116660.0,116650.0,0.25041941]
[1759321880576,0.30411976,116660.0,116650.0,0.44593941]
[1759321880839,0.30411976,116660.0,116650.0,0.25041941]
[1759321880840,0.32986282,116660.0,116650.0,0.25041941]
[1759321881112,0.32986282,116660.0,116650.0,0.69621941]
[1759321882171,0.32986282,116660.0,116650.0,0.00013941]
[1759321882424,0.32986282,116660.0,116650.0,0.69621941]
[1759321883128,0.39312989,116660.0,116650.0,0.69621941]
[1759321885998,0.39312962,116660.0,116650.0,0.69621941]
[1759321887041,0.35785772,116660.0,116650.0,0.69678941]
[1759321887457,0.36285772,116660.0,116650.0,0.69621941]
[1759321887993,0.36285772,116660.0,116650.0,0.00013941]
[1759321888210,0.36285772,116660.0,116650.0,0.69621941]
[1759321889342,0.36285772,116660.0,116650.0,0.25041941]
[1759321889548,0.36285772,116660.0,116650.0,0.69621941]
[1759321889725,0.36285772,116660.0,116650.0,0.00013941]
[1759321889927,0.36285772,116660.0,116650.0,0.69621941]
[1759321890317,0.17146776,116640.0,116630.0,0.58193173]
[1759321890518,0.26292323,116640.0,116630.0,0.22533809]
[1759321890838,0.26585323,116640.0,116630.0,0.49965612]
[1759321891466,0.26585323,116640.0,116630.0,0.74993612]
[1759321892435,0.26292323,116640.0,116630.0,0.74993612]
[1759321892630,0.26585323,116640.0,116630.0,0.05385612]
[1759321893158,0.26585323,116640.0,116630.0,0.74993612]
[1759321894835,0.26585323,116640.0,116630.0,0.74997612]
[1759321895262,0.26585323,116640.0,116630.0,0.49969612]
[1759321895469,0.26585323,116640.0,116630.0,0.74997612]
[1759321896725,0.26585323,116640.0,116630.0,0.7144588]
[1759321897134,0.26585323,116640.0,116630.0,0.74857041]
[1759321898971,0.26585323,116640.0,116630.0,0.05245041]
[1759321899179,0.26585323,116640.0,116630.0,0.74857041]
[1759321899839,0.26585323,116640.0,116630.0,0.7144588]
[1759321901164,0.26085323,116640.0,116630.0,0.7150288]
[1759321901386,0.26292323,116640.0,116630.0,0.7150288]
[1759321901799,0.26585323,116640.0,116630.0,0.7144588]
[1759321902051,0.26085323,116640.0,116630.0,0.88651126]
[1759321902260,0.26085323,116640.0,116630.0,0.7150288]
[1759321902457,0.26292323,116640.0,116630.0,0.74928389]
[1759321902667,0.26585323,116640.0,116630.0,0.74928389]
[1759321903487,0.26585323,116640.0,116630.0,0.0183388]
[1759321903646,0.26585323,116640.0,116630.0,0.7144588]
[1759321904676,0.26585323,116640.0,116630.0,0.2686188]
[1759321904885,0.26585323,116640.0,116630.0,0.7144588]
[1759321906899,0.26585323,116640.0,116630.0,0.0183388]
[1759321907175,0.26585323,116640.0,116630.0,0.7144588]
[1759321907518,0.26585323,116640.0,116630.0,0.0183388]
[1759321907754,0.26585323,116640.0,116630.0,0.7144588]
[1759321909994,0.26585323,116640.0,116630.0,0.6252988]
[1759321910211,0.26585323,116640.0,116630.0,0.7144588]
[1759321910616,0.26585323,116640.0,116630.0,0.0183388]
[1759321910783,0.30403503,116640.0,116630.0,0.2685788]
[1759321910998,0.30403503,116640.0,116630.0,0.0183388]
[1759321911200,0.30403503,116640.0,116630.0,0.7144188]
[1759321911619,0.30403503,116640.0,116630.0,0.0183388]
[1759321911818,0.30403503,116640.0,116630.0,0.7144188]
[1759321912917,0.30403503,116640.0,116630.0,0.2685788]
[1759321913126,0.30403503,116640.0,116630.0,0.7144188]
[1759321913555,0.32009465,116640.0,116630.0,0.7144188]
[1759321914517,0.31509465,116640.0,116630.0,0.7149888]
[1759321914769,0.28494275,116640.0,116630.0,0.7149888]
[1759321914966,0.29019275,116640.0,116630.0,0.7144188]
[1759321917195,0.29018755,116640.0,116630.0,0.7144188]
[1759321918135,0.29018755,116640.0,116630.0,0.4641788]
[1759321918341,0.29018755,116640.0,116630.0,0.7144588]
[1759321920218,0.29018755,116640.0,116630.0,0.0183388]
[1759321920851,0.32033945,116640.0,116630.0,0.0183388]
[1759321921142,0.32033945,116640.0,116630.0,0.7088588]
[1759321922912,0.41525837,116620.0,116610.0,0.03518519]
[1759321923118,0.50464384,116620.0,116610.0,0.9034668]
[1759321923543,0.50464384,116620.0,116610.0,0.73195493]
[1759321923764,0.50464384,116620.0,116610.0,0.9034668]
[1759321924905,0.33314667,116620.0,116610.0,0.9034668]
[1759321925108,0.50464384,116620.0,116610.0,0.9034668]
[1759321925328,0.50464384,116620.0,116610.0,0.03583493]
[1759321925750,0.50464384,116620.0,116610.0,0.64279493]
[1759321925751,0.57016445,116620.0,116610.0,0.64279493]
[1759321925991,0.57016445,116620.0,116610.0,0.73195493]
[1759321926214,0.50989384,116620.0,116610.0,0.64222493]
[1759321926414,0.50989384,116620.0,116610.0,0.73138493]
[1759321926623,0.50989384,116620.0,116610.0,0.48114493]
[1759321926834,0.36819216,116620.0,116610.0,0.08943974]
[1759321927052,0.36819216,116620.0,116610.0,0.33963974]
[1759321927283,0.29346454,116620.0,116610.0,0.34020974]
[1759321927500,0.29550789,116620.0,116610.0,0.3746104]
[1759321927723,0.26938264,116620.0,116610.0,0.34020974]
[1759321927944,0.27463264,116620.0,116610.0,0.33963974]
[1759321928786,0.27463264,116620.0,116610.0,0.54626856]
[1759321929006,0.27463264,116620.0,116610.0,0.51115161]
[1759321929209,0.27463264,116620.0,116610.0,0.33963974]
[1759321929445,0.26613264,116620.0,116610.0,0.51115161]
[1759321929595,0.3308943,116620.0,116610.0,0.33963974]
[1759321932316,0.3308943,116620.0,116610.0,0.34020974]
[1759321932317,0.26293264,116620.0,116610.0,0.34020974]
[1759321932731,0.26613264,116620.0,116610.0,0.33963974]
[1759321933740,0.26613264,116620.0,116610.0,0.69643974]
[1759321933965,0.26613264,116620.0,116610.0,0.00027974]
[1759321934186,0.26613264,116620.0,116610.0,0.69639974]
[1759321936329,0.26613264,116620.0,116610.0,0.25047974]
[1759321936566,0.26613264,116620.0,116610.0,0.69639974]
[1759321938802,0.27415377,116620.0,116610.0,0.69639974]
[1759321941012,0.17151187,116610.0,116600.0,0.3292879]
[1759321941219,0.26089734,116610.0,116600.0,0.77591746]
[1759321941687,0.26295734,116610.0,116600.0,0.77591746]
[1759321941929,0.26619734,116610.0,116600.0,0.77534746]
[1759321942154,0.26619734,116610.0,116600.0,1.02554746]
[1759321943307,0.26619734,116610.0,116600.0,0.32942746]
[1759321943528,0.26619734,116610.0,116600.0,1.02554746]
[1759321944816,0.26295734,116610.0,116600.0,1.02611746]
[1759321945034,0.26619734,116610.0,116600.0,0.30027217]
[1759321945248,0.26619734,116610.0,116600.0,0.90719217]
[1759321945451,0.26619734,116610.0,116600.0,0.30027217]
[1759321945724,0.26619734,116610.0,116600.0,1.02656725]
[1759321945927,0.26619734,116610.0,116600.0,0.99635217]
[1759321947387,0.26619734,116610.0,116600.0,1.16787875]
[1759321947768,0.26619734,116610.0,116600.0,0.99635217]
[1759321948417,0.26089734,116610.0,116600.0,1.16844875]
[1759321948614,0.26089734,116610.0,116600.0,0.9549632]
[1759321949194,0.26089734,116610.0,116600.0,0.9546032]
[1759321949420,0.26089734,116610.0,116600.0,0.2585232]
[1759321949639,0.26089734,116610.0,116600.0,0.9546032]
[1759321949860,0.26089734,116610.0,116600.0,0.2585232]
[1759321950098,0.26089734,116610.0,116600.0,0.9546032]
[1759321950501,0.26089734,116610.0,116600.0,0.2585232]
[1759321950727,0.26295734,116610.0,116600.0,0.9546032]
[1759321951800,0.24330134,116630.0,116610.0,0.171499]
[1759321952008,0.25132889,116630.0,116620.0,0.25069]
[1759321952406,0.25132889,116630.0,116620.0,0.69661]
[1759321953290,0.34071436,116630.0,116620.0,0.86810717]
[1759321953469,0.34071436,116630.0,116620.0,0.69661]
[1759321953673,0.34071436,116630.0,116620.0,0.86810717]
[1759321954081,0.26889548,116630.0,116620.0,0.86846717]
[1759321954287,0.26086793,116630.0,116620.0,0.86846717]
[1759321954704,0.26086793,116630.0,116620.0,0.86810717]
[1759321955325,0.26086793,116630.0,116620.0,0.17206717]
[1759321955535,0.26086793,116630.0,116620.0,0.00057]
[1759321955957,0.26292793,116630.0,116620.0,0.69604]
[1759321956171,0.2741943,116630.0,116620.0,0.69604]
[1759321956375,0.26616793,116630.0,116620.0,0.69604]
[1759321956601,0.27419375,116630.0,116620.0,0.69604]
[1759321956809,0.27419387,116630.0,116620.0,0.69604]
[1759321957435,0.17149717,116620.0,116610.0,0.17151163]
[1759321957638,0.17149717,116620.0,116610.0,0.17208163]
[1759321957639,0.26088264,116620.0,116610.0,0.17208163]
[1759321957846,0.70378264,116620.0,116610.0,0.86808163]
[1759321958636,0.70378264,116620.0,116610.0,0.86808187]
[1759321958845,0.70378264,116620.0,116610.0,0.69657]
[1759321959126,0.70378264,116620.0,116610.0,0.00057]
[1759321959257,0.70378264,116620.0,116610.0,0.69657]
[1759321960965,0.70378264,116620.0,116610.0,0.00057]
[1759321961379,0.70378264,116620.0,116610.0,0.86804187]
[1759321961571,0.70584264,116620.0,116610.0,0.00057]
[1759321961776,0.70584264,116620.0,116610.0,0.69653]
[1759321961983,0.53434547,116620.0,116610.0,0.86804187]
[1759321962117,0.70378264,116620.0,116610.0,0.86804187]
[1759321962319,0.53228547,116620.0,116610.0,0.86804187]
[1759321962525,0.70378264,116620.0,116610.0,0.86804187]
[1759321962733,0.70378264,116620.0,116610.0,0.86840187]
[1759321962924,0.70378264,116620.0,116610.0,0.00057]
[1759321963133,0.70378264,116620.0,116610.0,0.86804187]
[1759321963332,0.70908264,116620.0,116610.0,0.86747187]
[1759321963560,0.70908264,116620.0,116610.0,0.69596]
[1759321964083,0.70584264,116620.0,116610.0,0.86804187]
[1759321964324,0.70378264,116620.0,116610.0,0.86804187]
[1759321964959,0.70378264,116620.0,116610.0,0.17208187]
[1759321965176,0.70378264,116620.0,116610.0,0.42212187]
[1759321965451,0.70584264,116620.0,116610.0,0.86804187]
[1759321965675,0.70584264,116620.0,116600.0,0.2579532]
[1759321965900,0.70908264,116620.0,116610.0,8.86747187]
[1759321966108,0.70908264,116620.0,116610.0,0.69596]
[1759321967040,0.70908264,116620.0,116610.0,0.86747187]
[1759321967234,0.70378264,116620.0,116610.0,0.86804187]
[1759321968001,0.53228547,116620.0,116610.0,0.86804187]
[1759321968210,0.70378264,116620.0,116610.0,0.86804187]
[1759321968633,0.70378264,116620.0,116610.0,0.69653]
[1759321969158,0.70378264,116620.0,116610.0,0.86804187]
[1759321969387,0.70378264,116620.0,116610.0,0.61639117]
[1759321969749,0.70378264,116620.0,116610.0,0.44588]
[1759321970405,0.70378264,116620.0,116610.0,0.86739187]
[1759321970747,0.26604264,116620.0,116610.0,0.69588]
[1759321971076,0.26604264,116620.0,116610.0,0.86739187]
[1759321971555,0.26604264,116620.0,116610.0,0.69588]
[1759321973112,0.17151187,116610.0,116600.0,0.2579532]
[1759321973321,0.17151187,116610.0,116600.0,1.3105132]
[1759321973535,0.26400264,116620.0,116610.0,0.17151187]
[1759321973763,0.26088264,116620.0,116610.0,0.17151187]
[1759321974010,0.26604264,116620.0,116600.0,1.3105132]
[1759321974219,0.26604264,116620.0,116610.0,0.17151187]
[1759321974422,0.26088264,116620.0,116610.0,0.17151187]
[1759321975197,0.26292264,116620.0,116600.0,1.3105132]
[1759321975432,0.17151187,116610.0,116600.0,1.3105132]
[1759321975635,0.26293734,116610.0,116600.0,1.3104732]
[1759321975871,0.26089734,116610.0,116600.0,1.3104732]
[1759321976292,0.08938547,116610.0,116600.0,1.3104732]
[1759321978910,0.08928547,116610.0,116600.0,1.3104732]
[1759321979199,0.17149717,116620.0,116610.0,0.17151187]
[1759321979488,0.26088264,116620.0,116610.0,0.17151187]
[1759321979931,0.26292264,116620.0,116610.0,0.17151187]
[1759321980135,0.17151187,116610.0,116600.0,0.6146732]
[1759321980276,0.17151187,116610.0,116600.0,1.3104732]
[1759321980684,0.26605734,116610.0,116600.0,0.2579532]
[1759321980889,0.26605734,116610.0,116600.0,0.44314662]
[1759321981086,0.26605734,116610.0,116600.0,0.78218662]
[1759321981582,0.27408941,116610.0,116600.0,0.75218662]
[1759321981795,0.26605734,116610.0,116600.0,0.9237132]
[1759321981998,0.26293734,116610.0,116600.0,0.9237132]
[1759321982303,0.26605734,116610.0,116600.0,0.9237132]
[1759321983683,0.26293734,116610.0,116600.0,0.9237132]
[1759321984299,0.26605734,116610.0,116600.0,0.75222662]
[1759321984455,0.26605734,116610.0,116600.0,0.05642662]
[1759321984675,0.26605734,116610.0,116600.0,0.66306662]
[1759321984877,0.26605734,116610.0,116600.0,0.75222662]
[1759321985286,0.26605734,116610.0,116600.0,0.05642662]
[1759321985510,0.26605734,116610.0,116600.0,0.75222662]
[1759321985719,0.26605734,116610.0,116600.0,0.66302662]
[1759321985887,0.26605734,116610.0,116600.0,0.75218662]
[1759321986945,0.26605734,116610.0,116600.0,0.05642662]
[1759321987149,0.26605734,116610.0,116600.0,0.75218662]
[1759321987349,0.26605734,116610.0,116600.0,0.05642662]
[1759321987553,0.26605734,116610.0,116600.0,0.50234662]
[1759321987724,0.26605734,116610.0,116600.0,0.75218662]
[1759321994016,0.26605734,116610.0,116600.0,0.50234662]
[1759321994235,0.26605734,116610.0,116600.0,0.05642662]
[1759321994445,0.26605734,116610.0,116600.0,0.75214662]
[1759321997786,0.2740842,116610.0,116600.0,0.75214662]
[1759321997997,0.27408424,116610.0,116600.0,0.75214662]
[1759321998356,0.27408439,116610.0,116600.0,0.75214662]
[1759321999168,0.26605734,116610.0,116600.0,0.75214662]
[1759322000006,0.27408472,116610.0,116600.0,0.05642662]
[1759322000222,0.27408472,116610.0,116600.0,0.75210662]
[1759322000904,0.26605734,116610.0,116600.0,0.75210662]
[1759322001105,0.27408488,116610.0,116600.0,0.75210662]
[1759322001253,0.27408486,116610.0,116600.0,0.75210662]
[1759322001460,0.27408486,116610.0,116600.0,0.75206662]
[1759322002351,0.26892486,116610.0,116600.0,0.9235932]
[1759322002576,0.08938547,116610.0,116600.0,0.9235932]
[1759322002787,0.26089734,116610.0,116600.0,0.9235932]
[1759322003437,0.08938547,116610.0,116600.0,0.9235932]
[1759322004552,0.0085,116620.0,116610.0,0.17151187]
[1759322004774,0.26088264,116620.0,116610.0,0.17151187]
[1759322005201,0.08938547,116620.0,116610.0,0.17151187]
[1759322005570,0.26088264,116620.0,116610.0,0.17151187]
[1759322005776,0.08938547,116620.0,116610.0,0.18866305]
[1759322006184,0.08938547,116620.0,116610.0,0.17151187]
[1759322006390,0.08938547,116620.0,116610.0,0.18866305]
[1759322006614,0.26088264,116620.0,116610.0,0.18866305]
[1759322008257,0.08938547,116620.0,116610.0,0.18866305]
[1759322008660,0.26088264,116620.0,116610.0,0.88422305]
[1759322008882,0.08938547,116620.0,116610.0,0.86707187]
[1759322009550,0.26088264,116620.0,116610.0,0.86707187]
[1759322010899,0.08938547,116620.0,116610.0,0.86707187]
[1759322012269,0.18005658,116630.0,116610.0,0.86707187]
[1759322012467,0.27746713,116630.0,116620.0,0.17149717]
[1759322012808,0.26889301,116630.0,116620.0,0.17149717]
[1759322013009,0.26889301,116630.0,116620.0,0.42109717]
[1759322013212,0.26297793,116630.0,116620.0,0.86701717]
[1759322014009,0.08938547,116630.0,116620.0,0.86701717]
[1759322014964,0.18004114,116640.0,116630.0,0.17148246]
[1759322015172,0.09740741,116640.0,116630.0,0.7949507]
[1759322015382,0.09740741,116640.0,116630.0,0.86696246]
[1759322015613,0.08938547,116640.0,116630.0,0.86696246]
[1759322015939,0.18308306,116650.0,116640.0,0.17146776]
[1759322016137,0.28259836,116650.0,116640.0,0.17146776]
[1759322016447,0.28259836,116650.0,116640.0,0.77778776]
[1759322016615,0.28259836,116650.0,116640.0,0.86694776]
[1759322016974,0.28259836,116650.0,116640.0,0.69548]
[1759322017177,0.28259836,116650.0,116640.0,0.86708732]
[1759322018576,0.09788547,116650.0,116640.0,0.86708732]
[1759322018992,0.26933853,116650.0,116640.0,0.86700732]
[1759322019199,0.09788547,116650.0,116640.0,0.86700732]
[1759322019412,0.27144853,116650.0,116640.0,0.77784732]
[1759322019662,0.26294853,116650.0,116640.0,0.17160732]
[1759322019875,0.26607853,116650.0,116640.0,0.86700732]
[1759322020085,0.26607853,116650.0,116640.0,0.00013956]
[1759322020295,0.26607853,116650.0,116640.0,0.86700732]
[1759322023733,0.26607853,116650.0,116640.0,0.89248316]
[1759322023941,0.26607853,116650.0,116640.0,0.7210154]
[1759322024145,0.26614062,116650.0,116640.0,0.7210154]
[1759322025597,0.26614062,116650.0,116640.0,0.7209354]
[1759322026914,0.26614062,116650.0,116640.0,0.7208954]
[1759322027361,0.26614062,116650.0,116640.0,0.89236316]
[1759322028913,0.26614062,116650.0,116640.0,0.19708316]
[1759322029167,0.18005658,116630.0,116600.0,0.11783401]
[1759322029385,0.18005658,116630.0,116600.0,0.05633351]
[1759322029386,0.17362187,116610.0,116600.0,0.05633351]
[1759322029604,0.17362187,116610.0,116600.0,0.39489351]
[1759322029605,0.27414525,116610.0,116600.0,0.39489351]
[1759322030467,0.27101525,116610.0,116600.0,0.39684351]
[1759322030678,0.26300734,116610.0,116600.0,0.39684351]
[1759322030903,0.26300734,116610.0,116600.0,0.30573351]
[1759322031125,0.26599734,116610.0,116600.0,0.75161351]
[1759322031410,0.26599734,116610.0,116600.0,0.05633351]
[1759322031915,0.26599734,116610.0,116600.0,0.75161351]
[1759322032743,0.26599734,116610.0,116600.0,0.05633351]
[1759322032949,0.26599734,116610.0,116600.0,0.75161351]
[1759322033797,0.26599734,116610.0,116600.0,0.05633351]
[1759322033989,0.26599734,116610.0,116600.0,0.75161351]
[1759322038146,0.26599734,116610.0,116600.0,0.66245351]
[1759322038366,0.26599734,116610.0,116600.0,0.75161351]
[1759322039252,0.26300734,116610.0,116600.0,0.75373351]
[1759322039707,0.26599734,116610.0,116600.0,0.75161351]
[1759322041394,0.26599734,116610.0,116600.0,0.05633351]
[1759322041783,0.26599734,116610.0,116600.0,0.75169351]
[1759322042605,0.26089734,116610.0,116600.0,0.75381351]
[1759322042813,0.26299734,116610.0,116600.0,0.75381351]
[1759322043011,0.26598734,116610.0,116600.0,0.05633351]
[1759322043219,0.26598734,116610.0,116600.0,0.75165351]
[1759322045030,0.52848734,116610.0,116600.0,0.75165351]
[1759322045254,0.52549734,116610.0,116600.0,0.75377351]
[1759322045439,0.52339734,116610.0,116600.0,0.75377351]
[1759322046194,0.52549734,116610.0,116600.0,0.05633351]
[1759322046407,0.52848734,116610.0,116600.0,0.75165351]
[1759322046648,0.52848734,116610.0,116600.0,0.05633351]
[1759322046884,0.52848734,116610.0,116600.0,0.75165351]
[1759322047232,0.26598734,116610.0,116600.0,0.75165351]
[1759322049164,0.26089734,116610.0,116600.0,0.75377351]
[1759322049375,0.08938547,116610.0,116600.0,0.92834009]
[1759322049583,0.26089734,116610.0,116600.0,0.92834009]
[1759322049760,0.26089734,116610.0,116600.0,0.06149351]
[1759322049996,0.26089734,116610.0,116600.0,0.92526009]
[1759322050691,0.26089734,116610.0,116600.0,0.22998009]
[1759322050896,0.26089734,116610.0,116600.0,0.92526009]
[1759322051753,0.26089734,116610.0,116600.0,0.92522009]
[1759322052196,0.26089734,116610.0,116600.0,0.05845351]
[1759322052407,0.26299734,116610.0,116600.0,0.75369351]
[1759322053044,0.17152658,116600.0,116590.0,0.95446527]
[1759322053272,0.17152658,116600.0,116590.0,1.40193527]
[1759322054387,0.17152658,116600.0,116590.0,1.65117527]
[1759322054819,0.26089734,116610.0,116590.0,0.59913527]
[1759322054971,0.26089734,116610.0,116590.0,1.65117527]
[1759322056653,0.08938547,116610.0,116600.0,0.17152658]
[1759322056876,0.08938547,116610.0,116600.0,0.19106923]
[1759322057090,0.18008517,116620.0,116600.0,0.19106923]
[1759322057315,0.27748031,116620.0,116610.0,0.2492]
[1759322057525,0.27748031,116620.0,116610.0,0.42218187]
[1759322057991,0.27748031,116620.0,116610.0,0.42310187]
[1759322058911,0.27748031,116620.0,116610.0,0.42218187]
[1759322059114,0.27748031,116620.0,116610.0,0.00147]
[1759322059327,0.27958031,116620.0,116610.0,0.69667]
[1759322059988,0.27958031,116620.0,116610.0,0.00147]
[1759322060193,0.27958031,116620.0,116610.0,0.69663]
[1759322060606,0.27958031,116620.0,116610.0,0.00147]
[1759322061016,0.27958031,116620.0,116610.0,0.69663]
[1759322062151,0.27958031,116620.0,116610.0,0.86814187]
[1759322062728,0.27958031,116620.0,116610.0,0.00147]
[1759322062949,0.27958031,116620.0,116610.0,0.69651]
[1759322063568,0.28273031,116620.0,116610.0,0.69651]
[1759322064762,0.28273031,116620.0,116610.0,0.69504]
[1759322065168,0.28273031,116620.0,116600.0,0.52828658]
[1759322065169,0.17151187,116610.0,116600.0,0.52828658]
[1759322065370,0.17368187,116610.0,116600.0,1.22479658]
[1759322065619,0.17368187,116610.0,116600.0,0.17299658]
[1759322065817,0.17368187,116610.0,116600.0,1.22479658]
[1759322066176,0.17368187,116610.0,116600.0,1.13563658]
[1759322066382,0.17368187,116610.0,116600.0,1.22479658]
[1759322066988,0.26947064,116620.0,116600.0,1.22479658]
[1759322067204,0.26890823,116620.0,116610.0,0.77735187]
[1759322067420,0.26890823,116620.0,116610.0,0.86651187]
[1759322067682,0.26890823,116620.0,116610.0,0.86798187]
[1759322070426,0.26890823,116620.0,116610.0,0.69647]
[1759322070632,0.27107823,116620.0,116610.0,0.00147]
[1759322070815,0.27422823,116620.0,116610.0,0.69496]
[1759322073143,0.27422873,116620.0,116610.0,0.17151187]
[1759322073536,0.27107873,116620.0,116610.0,0.17298187]
[1759322074448,0.27422873,116620.0,116610.0,0.17298187]
[1759322075513,0.27422873,116620.0,116610.0,0.17151187]
[1759322078586,0.17151187,116610.0,116600.0,0.52920658]
[1759322078796,0.17151187,116610.0,116600.0,0.17299658]
[1759322078994,0.17151187,116610.0,116600.0,1.22463658]
[1759322079422,0.17151187,116610.0,116600.0,0.17299658]
[1759322079627,0.17683187,116610.0,116600.0,0.17152658]
[1759322079839,0.17683187,116610.0,116600.0,1.22316658]
[1759322081337,0.17683187,116610.0,116600.0,0.17152658]
[1759322081976,0.17683187,116610.0,116600.0,1.22312658]
[1759322082619,0.17683187,116610.0,116600.0,1.22459658]
[1759322083312,0.17368187,116610.0,116600.0,1.22459658]
[1759322083720,0.17368187,116610.0,116600.0,0.17299658]
[1759322083867,0.17368187,116610.0,116600.0,1.22459658]
[1759322085508,0.17368187,116610.0,116600.0,0.17299658]